fUSD/lending_fUSD_20250405
["ID","MTS","AMOUNT","RATE_DAILY","PERIOD"]
[357158121,1743811701171,-640.442,0.000196,2]
[357158122,1743811701201,-250.0,0.000196,2]
[357158123,1743811701229,-224.6051,0.000196,2]
[357158124,1743811701258,-350.0,0.00019849,12]
[357158125,1743811701286,-345.0,0.00019899,2]
[357158126,1743811701315,-628.70149241,0.000199,2]
[357158127,1743811701346,-3476.67242346,0.000199,2]
[357158130,1743811831956,-1798.78,0.00019662,2]
[357158131,1743811831966,-250.0,0.00019805,2]
[357158132,1743811831975,-4528.54793103,0.0001981,2]
[357158133,1743811831985,-1680.91777654,0.000199,2]
[357158134,1743811831995,-6551.23238665,0.000199,2]
[357158135,1743811832005,-2008.74829368,0.000199,2]
[357158136,1743811832014,-500.0,0.00019973,2]
[357158137,1743811832024,-421.68754224,0.00019973,2]
[357158138,1743811832033,-9251.39107434,0.0001999,2]
[357158139,1743811832043,-1000.0,0.00019999,2]
[357158140,1743811832052,-353.86329398,0.00019999,2]
[357158141,1743811832062,-1115.14576546,0.00019999,2]
[357158142,1743811832072,-31847.55614801,0.0002,2]
[357158143,1743811832184,-448.78230009,0.00019998,2]
[357158144,1743811832193,-230.23769991,0.0002,2]
[357158145,1743811832205,-701.24171303,0.0002,2]
[357158146,1743811832215,-1189.27015556,0.0002,2]
[357158147,1743811832307,-12485.91392801,0.0002,2]
[357158177,1743811837911,-333.43734468,0.00019705,2]
[357158178,1743811837922,-203.51566533,0.0001971,2]
[357158179,1743811837934,-129.92167934,0.0001971,2]
[357158180,1743811837944,-167.83866348,0.0002,2]
[357158181,1743811838135,-126204.90973164,0.0002,2]
[357158185,1743811840041,-335.37152,0.0002,2]
[357158186,1743811840346,-307.25760002,0.0002,2]
[357158226,1743811846346,-260.37228727,0.0002,2]
[357158228,1743811929765,500.0,0.00035943,120]
[357158229,1743812710971,902.99366794,0.000154,2]
[357158230,1743812711000,541.83191904,0.000154,2]
[357158231,1743812711534,-170.09,0.00017662,2]
[357158232,1743812717535,-162.70196803,0.00019428,2]
[357158233,1743812721049,-87.29803197,0.00019428,2]
[357158234,1743812721072,-212.70196803,0.00019428,2]
[357158235,1743812736786,-150.0,0.00019,2]
[357158236,1743812755848,-35.87703049,0.00019,2]
[357158237,1743812755871,-37.29803197,0.00019428,2]
[357158238,1743812755895,-79.17493754,0.00019428,2]
[357158239,1743812763119,-150.0,0.00019428,2]
[357158240,1743812878356,3825.60656499,0.00015,2]
[357158241,1743812878387,3820.92298495,0.00015,2]
[357158242,1743812878417,4000.0,0.00015,2]
[357158243,1743812878448,5347.90563051,0.00015,2]
[357158244,1743812878477,4764.78334001,0.00015,2]
[357158245,1743812878504,3885.99232631,0.00015,2]
[357158246,1743812878532,3745.91114324,0.00015,2]
[357158247,1743812878560,3738.68383402,0.00015,2]
[357158248,1743812878594,5175.30583271,0.00015,2]
[357158249,1743812878624,3659.10845935,0.00015,2]
[357158250,1743812878654,4163.60288875,0.00015,2]
[357158251,1743812878682,500000.0,0.00015,2]
[357158252,1743812878707,191499.97870685,0.00015,2]
[357158253,1743812896739,-8245.36429949,0.00016,2]
[357158256,1743812896820,-8245.36429949,0.00016,2]
[357158259,1743812897028,-2583.73616892,0.00016,2]
[357158260,1743812898004,-151.0,0.00016,2]
[357158261,1743812906233,1040.32954435,0.00035944,35]
[357158262,1743812910402,1679.23841667,9.828e-05,2]
[357158263,1743812913556,1835.06747114,0.000149,2]
[357158264,1743812921044,-150.0,0.000154,2]
[357158265,1743812921858,-338.3043252,0.000154,2]
[357158267,1743812921898,-200.7710228,0.00016,2]
[357158273,1743812961136,-86.43129057,0.00016,2]
[357158274,1743812961158,-159.34147143,0.00019328,2]
[357158275,1743812961178,-1708.84,0.00019383,2]
[357158276,1743812961198,-20.82506246,0.00019428,2]
[357158277,1743812961217,-250.0,0.00019514,2]
[357158278,1743812961238,-688.116,0.000196,2]
[357158279,1743812961258,-159.34147142,0.00019614,2]
[357158280,1743812961280,-500.0,0.00019753,2]
[357158281,1743812961300,-300.0,0.00019899,2]
[357158282,1743812961321,-523.96007819,0.000199,2]
[357158286,1743812973253,150.0,0.00035944,30]
[357158292,1743813032114,-2120.34484244,0.000199,2]
[357158293,1743813032170,-5012.71620559,0.000199,2]
[357158294,1743813032385,-3470.71267017,0.000199,2]
[357158295,1743813032394,-155.83404807,0.000199,3]
[357158296,1743813032403,-159.34147142,0.000199,2]
[357158297,1743813032413,-1352.69839241,0.000199,2]
[357158298,1743813032423,-250.0,0.000199,2]
[357158299,1743813032432,-368.79147173,0.0001995,2]
[357158300,1743813032441,-716785.58625634,0.0002,2]
[357158314,1743813040317,-15.84868036,0.0002,2]
[357158315,1743813040367,-50732.7791015,0.0002,2]
[357158410,1743813043326,-302.30989024,0.0002,2]
[357158445,1743813258388,-150.0,0.00017188,2]
[357158446,1743813362342,-19.47,0.00017188,2]
[357158447,1743813362364,-218.07581265,0.00018907,2]
[357158448,1743813484921,-31.92418735,0.00018907,2]
[357158449,1743813484943,-118.07980352,0.00019403,2]
[357158450,1743813513762,-131.92019648,0.00019403,2]
[357158451,1743813513785,-168.07980352,0.000196,2]
[357158452,1743813562426,86461.08481153,0.0003,30]
[357158453,1743813924758,-263.44608735,0.00019299,2]
[357158460,1743814232336,-1050.0,0.00019299,2]
[357158461,1743814232447,-309.94391265,0.00019299,2]
[357158462,1743814232457,-250.0,0.0001945,2]
[357158463,1743814232473,-263.44608735,0.000195,2]
[357158464,1743814232483,-382.41319648,0.000196,2]
[357158465,1743814232492,-176.57851011,0.000196,2]
[357158466,1743814232503,-392.75603891,0.00019785,2]
[357158467,1743814232512,-300.0,0.00019899,2]
[357158468,1743814232521,-1000.0,0.000199,2]
[357158469,1743814232530,-210.28790082,0.000199,2]
[357158470,1743814232723,-1682.17841262,0.000199,2]
[357158477,1743814238196,-86.72198338,0.000199,2]
[357158478,1743814238209,-490.58966961,0.000199,2]
[357158479,1743814238220,-273.62779151,0.000199,2]
[357158480,1743814238230,-1339.16552912,0.000199,2]
[357158481,1743814238240,-1079.55478609,0.00019999,5]
[357158482,1743814238249,-1387.0401356,0.0002,2]
[357158483,1743814238260,-786.9152623,0.0002,2]
[357158484,1743814238309,-1307.14754349,0.0002,2]
[357158485,1743814238321,-3230.83636141,0.0002,2]
[357158486,1743814238337,-3110.01716113,0.0002,2]
[357158487,1743814238349,-2048.003565,0.0002,2]
[357158488,1743814238360,-4059.62035122,0.0002,2]
[357158489,1743814238372,-1795.08269747,0.0002,2]
[357158490,1743814238384,-1091.29085465,0.0002,2]
[357158491,1743814238395,-310.91704001,0.0002,2]
[357158492,1743814238407,-25006.48436685,0.0002,2]
[357158493,1743814238418,-4688.42003455,0.0002,2]
[357158494,1743814238429,-363.50002513,0.0002,2]
[357158495,1743814238440,-7892.73603532,0.0002,2]
[357158496,1743814238455,-32963.17824134,0.0002,2]
[357158497,1743814238471,-8079.61965227,0.0002,2]
[357158502,1743814240656,-31633.67996175,0.0002,2]
[357158631,1743814244170,-17.91573458,0.0002,2]
[357158635,1743814246445,-2914.23942435,0.0002,2]
[357158636,1743814246501,-2479.5771,0.0002,2]
[357158637,1743814246513,-7779.97209868,0.0002,2]
[357158638,1743814246561,-836.42,0.0002,2]
[357158639,1743814246572,-167160.00000001,0.0002,2]
[357158640,1743814246725,-5553.0,0.0002,2]
[357158669,1743814296423,-169.47,0.00016348,2]
[357158670,1743814296445,-1.95782654,0.00019997,2]
[357158672,1743814321993,-300.0,0.00019996,2]
[357158675,1743814573757,-239.87194988,0.00019897,2]
[357158676,1743814983135,-224.6051,0.000179,2]
[357158677,1743814995552,-150.0,0.000179,2]
[357158678,1743815038806,-253.56356951,0.000179,2]
[357158679,1743815059034,-213.27747819,0.00017713,2]
[357158680,1743815086297,-36.72252181,0.00017713,2]
[357158681,1743815086320,-179.27747819,0.000179,2]
[357158682,1743815370107,-1132.4838523,0.000179,2]
[357158683,1743815370129,-174.6450137,0.00018899,2]
[357158684,1743815370149,-224.6051,0.0001892,2]
[357158685,1743815370168,-500.0,0.00018959,2]
[357158686,1743815370187,-1154.77,0.0001902,2]
[357158687,1743815370207,-155.73,0.00019036,2]
[357158688,1743815370226,-200.0,0.00019099,2]
[357158689,1743815370246,-830.04142937,0.00019305,2]
[357158690,1743815393362,169.47,0.00015345,2]
[357158691,1743815431652,-1734.11857063,0.00019305,2]
[357158692,1743815431661,-5277.36,0.00019364,2]
[357158693,1743815431671,-150.0,0.00019667,2]
[357158694,1743815431680,-250.0,0.00019691,2]
[357158695,1743815431690,-250.0,0.00019691,2]
[357158696,1743815431699,-166.66,0.00019736,2]
[357158697,1743815431708,-387.54980352,0.0001981,2]
[357158698,1743815431718,-250.0,0.00019818,2]
[357158699,1743815431727,-1852.42,0.00019873,2]
[357158700,1743815431736,-450.33,0.00019897,2]
[357158701,1743815431746,-450.0,0.00019899,2]
[357158702,1743815431755,-239.87194988,0.00019899,2]
[357158703,1743815431764,-1579.3902,0.000199,2]
[357158704,1743815431773,-1343.6544,0.000199,2]
[357158705,1743815431783,-175.92443708,0.000199,2]
[357158706,1743815431792,-7804.51305632,0.000199,2]
[357158707,1743815431801,-3481.80706475,0.000199,2]
[357158708,1743815431810,-1182.38936097,0.0001999,2]
[357158709,1743815431820,-353.86329398,0.00019999,2]
[357158710,1743815431829,-166491.96946287,0.0002,2]
[357158799,1743815437432,-1064684.98541815,0.0002,2]
[357158800,1743815437444,-3272.795,0.0002,2]
[357158801,1743815437494,-369.50775994,0.0002,2]
[357158802,1743815437556,-2072.95149155,0.0002,2]
[357158803,1743815437568,-4155.0,0.0002,2]
[357158804,1743815437580,-286.35166445,0.0002,2]
[357158805,1743815437617,-1103.565853,0.0002,2]
[357158806,1743815437683,-304.26106665,0.0002,2]
[357158808,1743815439617,-423.00803095,0.0002,2]
[357158809,1743815439787,-0.00323036,0.0002,2]
[357158810,1743815439800,-113507.43779238,0.0002,2]
[357158811,1743815439902,-3320.42160353,0.0002,2]
[357158812,1743815439914,-870.2816377,0.0002,2]
[357158813,1743815439925,-978.20759998,0.0002,2]
[357158814,1743815439936,-11642.34725264,0.0002,2]
[357158815,1743815439947,-31176.12325624,0.0002,2]
[357158816,1743815439958,-13712.42692854,0.0002,2]
[357158817,1743815439970,-12770.27270595,0.0002,2]
[357158818,1743815439981,-1781.137005,0.0002,2]
[357158819,1743815439992,-1363.68834929,0.0002,2]
[357158820,1743815440003,-4592.27815191,0.0002,2]
[357158821,1743815440015,-1814.74099537,0.0002,2]
[357158822,1743815440026,-2902.29292692,0.0002,2]
[357158823,1743815440038,-14636.94412804,0.0002,2]
[357158943,1743815443134,-276.5830478,0.0002,2]
[357158944,1743815443146,-666.55286765,0.0002,2]
[357158945,1743815443158,-437.12718872,0.0002,2]
[357158953,1743815445555,-892.7770194,0.000199,2]
[357158954,1743815445565,-7487.6229806,0.0002,2]
[357158955,1743815445617,-524.87616442,0.0002,2]
[357158956,1743815445735,-5379.014799,0.0002,2]
[357158963,1743815541488,150.0,0.00035942,30]
[357158965,1743816446969,169.47,0.00015283,2]
[357158966,1743816477674,149.75721538,0.00015,2]
[357158967,1743816477703,360.90403708,0.00015,2]
[357158968,1743816477732,11925.0,0.00015,2]
[357158969,1743816477909,4441.19569841,0.00015,2]
[357158970,1743816477940,4940.19535066,0.00015,2]
[357158971,1743816477965,374011.37575284,0.00015,2]
[357158972,1743816477993,214200.14064814,0.00015,2]
[357158973,1743816479694,-151.0,0.00018,2]
[357158974,1743816511145,-162.70196803,0.00019103,2]
[357158978,1743816556333,-212.70196803,0.00019103,2]
[357158982,1743816580870,-150.0,0.00019103,2]
[357158987,1743816601132,-150.0,0.00019103,2]
[357158988,1743816616942,-150.0,0.00018979,2]
[357158995,1743816631796,-150.0,0.00018979,2]
[357158996,1743816631806,-1256.06606394,0.00019103,2]
[357158997,1743816631815,-179.49,0.00019152,2]
[357158998,1743816631825,-2638.68,0.00019315,2]
[357158999,1743816631834,-167.34,0.0001939,2]
[357159000,1743816631844,-250.0,0.00019396,2]
[357159001,1743816631853,-2033.7272697,0.00019399,2]
[357159002,1743816631862,-1469.8,0.00019399,2]
[357159003,1743816631872,-500.0,0.00019507,2]
[357159004,1743816631882,-300.0,0.00019564,2]
[357159005,1743816631891,-304.89666136,0.00019565,2]
[357159006,1743816631916,-2700.54923419,0.00019565,2]
[357159007,1743816631968,-689.05410445,0.00019565,2]
[357159008,1743816631977,-160.42589555,0.000196,2]
[357159043,1743816632577,-150.0,0.000196,2]
[357159103,1743816639859,-150.0,0.00018957,7]
[357159104,1743816639868,-594.96847343,0.000196,2]
[357159105,1743816640364,-94.60563102,0.000196,2]
[357159106,1743816640374,-350.50312019,0.0001989,2]
[357159107,1743816640385,-149.49687981,0.0001989,2]
[357159108,1743816640394,-150.0,0.00019899,2]
[357159109,1743816640403,-500.0,0.00019899,2]
[357159110,1743816640413,-370.82539222,0.00019899,2]
[357159111,1743816640421,-26572.3561,0.000199,2]
[357159112,1743816640430,-175.92443708,0.000199,2]
[357159113,1743816640439,-1000.0,0.000199,2]
[357159114,1743816640448,-155.83404807,0.000199,3]
[357159115,1743816640458,-173.6262,0.000199,2]
[357159117,1743816640467,-511.1033,0.000199,2]
[357159119,1743816640476,-3015.36037181,0.000199,2]
[357159121,1743816640485,-12568.86590592,0.000199,2]
[357159122,1743816640499,-200.0,0.00019956,2]
[357159124,1743816640508,-200.0,0.00019956,2]
[357159126,1743816640517,-500.0,0.00019973,2]
[357159128,1743816640527,-187.492,0.00019988,2]
[357159130,1743816640536,-678.63,0.00019988,2]
[357159131,1743816640545,-5289.6250052,0.00019998,2]
[357159133,1743816640555,-10560.8673585,0.00019998,2]
[357159135,1743816640565,-16630.50582574,0.00019999,2]
[357159137,1743816640573,-3039805.48353474,0.0002,2]
[357159200,1743816643559,-86.87661722,0.0002,2]
[357159201,1743816643575,-9828.70058461,0.0002,2]
[357159202,1743816643600,-11380.36609601,0.0002,2]
[357159203,1743816643615,-307.80391658,0.0002,2]
[357159262,1743816651918,218.0,0.0003593,120]
[357159263,1743816676473,206.27746996,0.0003593,30]
[357159264,1743816691572,-150.0,0.00019399,2]
[357159265,1743816723048,-150.0,0.00019399,2]
[357159266,1743816782537,-150.0,0.00019399,2]
[357159268,1743816819246,-150.0,0.00019399,2]
[357159269,1743816823458,179.0,0.00035925,120]
[357159270,1743816842422,-150.0,0.0001965,2]
[357159271,1743817082538,-150.0,0.00019399,2]
[357159272,1743817127056,-150.0,0.00019399,2]
[357159273,1743817170998,-150.0,0.00019399,2]
[357159274,1743817205911,-150.0,0.00019399,2]
[357159275,1743817216081,-150.0,0.00019399,2]
[357159276,1743817262660,-150.0,0.00016712,2]
[357159277,1743817285886,-65.27,0.00016712,2]
[357159278,1743817285922,-102.80980352,0.00019067,2]
[357159280,1743817658371,-218.07581265,0.00016979,2]
[357159281,1743817662330,-150.0,0.00016979,2]
[357159282,1743817683981,-263.44608735,0.00016979,2]
[357159283,1743817756139,-1162.64889249,0.00016979,2]
[357159284,1743817802605,-48.75920751,0.00016979,2]
[357159285,1743817802628,-101.24079249,0.00017804,2]
[357159295,1743817831940,-148.75920751,0.00017804,2]
[357159296,1743817831950,-150.0,0.00018629,7]
[357159297,1743817831959,-753.32274607,0.0001864,2]
[357159298,1743817832007,-271.07260939,0.0001864,2]
[357159299,1743817832231,-843.67775087,0.0001864,2]
[357159304,1743817837768,-2920.0991605,0.0001864,2]
[357159306,1743817837779,-692.74999987,0.0001864,2]
[357159310,1743817837923,-1399.83899624,0.0001864,2]
[357159311,1743817837935,-2469.30873706,0.0001864,2]
[357159312,1743817837944,-1000.0,0.00018653,2]
[357159313,1743817837954,-250.0,0.00018676,2]
[357159314,1743817837966,-250.0,0.00018676,2]
[357159315,1743817837975,-230.69126294,0.00018787,2]
[357159316,1743817837991,-69.30873706,0.00018787,2]
[357159317,1743817838001,-347.58626294,0.00018788,2]
[357159318,1743817838047,-3453.598199,0.00018788,2]
[357159319,1743817838088,-3750.0,0.00018788,2]
[357159320,1743817838099,-5045.33553806,0.00018788,2]
[357159322,1743817838108,-3417.05079448,0.00018864,2]
[357159401,1743817843892,-571.72939449,0.00018864,2]
[357159403,1743817846217,-1045.15563379,0.00018864,2]
[357159404,1743817846229,-2591.21301343,0.00018864,2]
[357159406,1743817946971,-300.0,0.00018643,2]
[357159407,1743818093708,4323.0,0.0003592,30]
[357159408,1743818309100,-153.90742366,0.00017964,2]
[357159409,1743818313634,-239.87194988,0.00017964,2]
[357159410,1743818464007,-152.47720977,0.000179,2]
[357159411,1743818464030,-7.0845969,0.00017963,2]
[357159412,1743818794595,35989.94812719,0.000318,120]
[357159413,1743818990102,-1738.86704886,0.00016011,2]
[357159414,1743818990159,-119.92295114,0.00016011,2]
[357159415,1743819001929,-224.6051,0.00017703,2]
[357159417,1743819031930,-101.58954695,0.00017703,2]
[357159418,1743819031939,-250.0,0.00017753,2]
[357159419,1743819031948,-250.0,0.00017796,2]
[357159420,1743819031958,-59.76057582,0.00017802,2]
[357159421,1743819032058,-244.23942418,0.00017802,2]
[357159422,1743819032067,-300.0,0.00017802,2]
[357159423,1743819032078,-197.08927652,0.00017802,2]
[357159424,1743819032089,-325.34351662,0.00017802,2]
[357159425,1743819032098,-23900.0,0.00017803,2]
[357159426,1743819032108,-1000.0,0.00017803,2]
[357159427,1743819032117,-183.85,0.00017803,2]
[357159428,1743819032126,-150.6,0.00017824,2]
[357159429,1743819032135,-150.0,0.00017845,2]
[357159430,1743819032145,-250.0,0.00017864,2]
[357159431,1743819032154,-2641.1054031,0.00017963,2]
[357159432,1743819032163,-1145.16062646,0.00017964,2]
[357159433,1743819032172,-326.19464693,0.00018039,2]
[357159434,1743819032181,-200.0,0.00018048,2]
[357159435,1743819032191,-1858.79,0.00018275,2]
[357159436,1743819032201,-162.12,0.0001836,2]
[357159437,1743819032210,-13288.36,0.0001836,2]
[357159438,1743819032219,-4775.38,0.0001836,2]
[357159439,1743819032228,-6054.05,0.0001836,2]
[357159440,1743819032237,-326.19464693,0.00018375,2]
[357159441,1743819032246,-1705.15,0.00018475,2]
[357159442,1743819032255,-661.2022556,0.00018479,2]
[357159443,1743819032289,-1043.9477444,0.00018479,2]
[357159444,1743819032303,-200.0,0.00018482,2]
[357159445,1743819032312,-1705.15,0.00018484,2]
[357159446,1743819032322,-1705.15,0.00018489,2]
[357159448,1743819032332,-1705.15,0.00018494,2]
[357159450,1743819032343,-1705.15,0.00018499,2]
[357159452,1743819032352,-1705.15,0.00018504,2]
[357159454,1743819032361,-1705.15,0.00018508,2]
[357159456,1743819032373,-1000.0,0.00018512,2]
[357159457,1743819032382,-1705.15,0.00018513,2]
[357159459,1743819032391,-153.01345803,0.00018518,2]
[357159461,1743819032400,-156.00884276,0.00018518,2]
[357159463,1743819032410,-500.0,0.00018518,2]
[357159465,1743819032419,-181.42620463,0.00018518,2]
[357159467,1743819032428,-151.93943119,0.00018518,2]
[357159469,1743819032437,-1705.15,0.00018518,2]
[357159471,1743819032446,-206.10489809,0.00018523,2]
[357159601,1743819037899,-150.879,0.00018508,2]
[357159602,1743819037908,-150.879,0.00018508,2]
[357159603,1743819037917,-150.879,0.00018508,2]
[357159604,1743819037926,-150.879,0.00018508,2]
[357159605,1743819037935,-150.879,0.00018508,2]
[357159606,1743819037943,-85.85858815,0.00018508,2]
[357159607,1743819037954,-65.02041185,0.00018508,2]
[357159608,1743819037963,-150.879,0.00018508,2]
[357159609,1743819037973,-1499.04510191,0.00018523,2]
[357159610,1743819037982,-1705.15,0.00018528,2]
[357159611,1743819037991,-1047.14594496,0.00018533,2]
[357159612,1743819038036,-658.00405504,0.00018533,2]
[357159613,1743819038046,-1449.08828212,0.00018538,2]
[357159614,1743819038057,-256.06171788,0.00018538,2]
[357159615,1743819038067,-732.87,0.0001854,2]
[357159616,1743819038076,-1705.15,0.00018542,2]
[357159617,1743819038086,-1705.15,0.00018547,2]
[357159618,1743819038096,-1705.15,0.00018552,2]
[357159619,1743819038105,-1705.15,0.00018557,2]
[357159620,1743819038114,-1705.15,0.00018562,2]
[357159621,1743819038123,-1705.15,0.00018567,2]
[357159622,1743819038132,-500.0,0.00018573,2]
[357159623,1743819038141,-422.8148896,0.00018573,2]
[357159624,1743819038150,-164.05735681,0.00018573,2]
[357159625,1743819038159,-162.16494766,0.00018573,2]
[357159626,1743819038168,-160.67863633,0.00018573,2]
[357159627,1743819038177,-153.66925699,0.00018573,2]
[357159628,1743819038187,-500.0,0.00018573,2]
[357159630,1743819038196,-500.0,0.00018573,2]
[357159632,1743819038205,-319.24938404,0.00018573,2]
[357159633,1743819038214,-1195.27597439,0.00018643,2]
[357159637,1743819038395,-1252.67402561,0.00018643,2]
[357159638,1743819038404,-163.94246851,0.00018712,2]
[357159693,1743819040243,-291.90403061,0.00018678,2]
[357159695,1743819040252,-111.36112939,0.00018712,2]
[357159697,1743819040262,-14.92760769,0.00018725,2]
[357159700,1743819040281,-520.61822548,0.00018725,2]
[357159838,1743819042965,-322.72023642,0.00018725,2]
[357159843,1743819043773,-5.82388595,0.00018725,2]
[357159844,1743819045999,-727.81568969,0.00018725,2]
[357159845,1743819046085,-951.18185477,0.00018725,2]
[357159846,1743819046098,-150.6,0.00018815,2]
[357159847,1743819046112,-617.68,0.00019067,2]
[357159848,1743819046123,-250.0,0.00019067,2]
[357159849,1743819046135,-30655.99,0.00019067,2]
[357159850,1743819046149,-155.73,0.00019099,2]
[357159851,1743819046162,-162.12,0.00019118,2]
[357159852,1743819046174,-300.0,0.00019197,2]
[357159853,1743819046186,-1190.7378856,0.00019399,2]
[357159854,1743819046198,-1345.50274552,0.000194,2]
[357159855,1743819046214,-420.0,0.00019428,2]
[357159856,1743819046230,-199.98647442,0.00019473,2]
[357159857,1743819046250,-50.01352558,0.00019473,2]
[357159858,1743819046262,-10631.9470572,0.00019492,2]
[357159859,1743819046274,-6504.21797631,0.000195,2]
[357159860,1743819046285,-189.39,0.00019506,2]
[357159861,1743819046299,-1799.3493,0.000196,2]
[357159862,1743819046310,-2029.8894,0.000196,2]
[357159863,1743819046322,-477.1286,0.000196,2]
[357159864,1743819046334,-1956.9149,0.000196,2]
[357159865,1743819046347,-539.4163,0.000197,2]
[357159866,1743819046364,-1345.50274551,0.000198,2]
[357159867,1743819046379,-31407.4987,0.000198,2]
[357159868,1743819046393,-171.63150653,0.000198,2]
[357159869,1743819046406,-1000.0,0.000198,2]
[357159870,1743819046419,-150.6,0.00019805,2]
[357159871,1743819046431,-233.93,0.0001983,2]
[357159872,1743819046444,-2239.14,0.00019863,2]
[357159874,1743819046457,-502.28421049,0.00019873,2]
[357159877,1743819046469,-213.79389288,0.00019873,2]
[357159879,1743819046480,-500.0,0.00019873,2]
[357159881,1743819046492,-500.0,0.00019873,2]
[357159883,1743819046504,-503.15145724,0.00019873,2]
[357159884,1743819046517,-511.38699067,0.00019873,2]
[357159885,1743819046530,-500.0,0.00019873,2]
[357159886,1743819046543,-162.12,0.00019876,2]
[357159887,1743819046556,-2239.14,0.0001989,2]
[357159888,1743819046569,-2239.14,0.0001989,2]
[357159889,1743819046582,-2239.14,0.0001989,2]
[357159890,1743819046595,-2239.14,0.0001989,2]
[357159891,1743819046606,-2239.14,0.0001989,2]
[357159892,1743819046618,-666.3748,0.000199,2]
[357159893,1743819046630,-500.0,0.000199,2]
[357159894,1743819046642,-1338.932,0.000199,2]
[357159895,1743819046653,-36038.676,0.000199,2]
[357159896,1743819046665,-1664.0814,0.000199,2]
[357159897,1743819046676,-2071.0908,0.000199,2]
[357159898,1743819046688,-3797.9355,0.000199,2]
[357159899,1743819046700,-1026.3502,0.000199,2]
[357159900,1743819046712,-66331.0355,0.000199,2]
[357159901,1743819046723,-158.78601547,0.000199,2]
[357159902,1743819046735,-223.0,0.000199,2]
[357159903,1743819046747,-1074.22953498,0.000199,2]
[357159904,1743819046759,-243.0,0.00019973,2]
[357159905,1743819046774,-181.72749689,0.00019973,2]
[357159906,1743819046784,-170.0,0.00019973,2]
[357159907,1743819046793,-152.99145395,0.00019973,2]
[357159908,1743819046803,-501.24453511,0.00019973,2]
[357159909,1743819046813,-500.0,0.00019973,2]
[357159910,1743819046823,-503.00606634,0.00019973,2]
[357159911,1743819046832,-500.0,0.00019973,2]
[357159912,1743819047007,-2239.14,0.0001998,2]
[357159913,1743819047028,-2239.14,0.0001999,2]
[357159914,1743819047039,-2239.14,0.0001999,2]
[357159915,1743819047049,-2239.14,0.0001999,2]
[357159916,1743819047058,-463634.33903773,0.0002,2]
[357159917,1743819047069,-54854.02438484,0.0002,4]
[357159918,1743819047078,-154961.68700025,0.0002,2]
[357159919,1743819185262,263.57126,0.0002,23]
[357159920,1743819185318,263.57126,0.00025,23]
[357159921,1743819504715,388.46525,0.0002,23]
[357159922,1743819504771,388.46526,0.00025,23]
[357159923,1743819651461,-150.0,0.00017818,2]
[357159924,1743819668802,165.0,0.00035915,120]
[357159925,1743819677869,164.95232431,0.0002,23]
[357159926,1743819725582,436.2694,0.0002,23]
[357159927,1743819725634,436.26941,0.00025,23]
[357159928,1743819843702,202.72791,0.0002,23]
[357159929,1743819843758,202.72792,0.00025,23]
[357159930,1743819886490,290.84627,0.00025,23]
[357159931,1743819886555,290.84627,0.0002,23]
[357159932,1743819910592,150.40185381,0.00035915,120]
[357159933,1743819915125,28054.47131968,0.00035915,30]
[357159934,1743819929297,162.18233,0.0002,23]
[357159935,1743819929349,162.18234,0.00025,23]
[357159936,1743819955930,157.33159876,0.0003,60]
[357159937,1743819964430,151.06304606,0.00035915,120]
[357159939,1743819972089,274.98868,0.0002,23]
[357159940,1743819972140,274.98869,0.00025,23]
[357159941,1743820051510,280.70381,0.0002,23]
[357159942,1743820051565,280.70382,0.00025,23]
[357159943,1743820107394,-253.56356951,0.00017,2]
[357159949,1743820113306,170.66,0.00014993,2]
[357159951,1743820121304,-151.0,0.000151,2]